bitfinex/quotes_BTCUSD_20240821
["timestamp","ask_amount","ask_price","bid_price","bid_amount"]
[1724269458111,0.183025,61317.0,61316.0,0.005]
[1724269458265,0.183025,61317.0,61316.0,0.013]
[1724269458266,0.760511,61317.0,61316.0,0.013]
[1724269458474,0.760511,61317.0,61316.0,0.008]
[1724269458894,0.760511,61317.0,61316.0,0.007]
[1724269459088,0.759511,61317.0,61312.0,0.163099]
[1724269459287,0.598425,61317.0,61316.0,0.013]
[1724269459737,0.597425,61317.0,61316.0,0.007]
[1724269460136,0.596425,61317.0,61311.0,0.326201]
[1724269460345,0.759512,61317.0,61313.0,0.163097]
[1724269460694,1.2270328,61317.0,61316.0,0.005]
[1724269460903,1.411858,61317.0,61316.0,0.005]
[1724269461123,1.086685,61317.0,61316.0,0.013]
[1724269461717,1.086685,61317.0,61309.0,0.163107]
[1724269461718,0.5816,61313.0,61309.0,0.163107]
[1724269461980,0.5816,61313.0,61310.0,0.163104]
[1724269462154,0.5816,61313.0,61311.0,0.163101]
[1724269463724,0.5816,61313.0,61311.0,0.164101]
[1724269464202,0.361499,61313.0,61311.0,0.001]
[1724269464412,0.4071,61312.0,61311.0,0.164102]
[1724269465014,0.4071,61312.0,61311.0,0.167102]
[1724269465173,0.42414405,61312.0,61311.0,0.167102]
[1724269465372,0.42414405,61312.0,61311.0,0.163102]
[1724269465960,0.42414405,61312.0,61311.0,0.006]
[1724269466171,0.58724405,61312.0,61311.0,0.004]
[1724269466371,1.26614703,61312.0,61311.0,0.004]
[1724269467270,0.163106,61310.0,61305.0,0.163116]
[1724269467483,0.4143,61308.0,61305.0,0.163116]
[1724269467889,0.4143,61308.0,61306.0,0.163116]
[1724269468090,0.3944,61302.0,61287.0,0.326333]
[1724269468297,0.3944,61302.0,61288.0,0.26400298]
[1724269468437,0.1993,61301.0,61288.0,0.26400298]
[1724269468637,0.1993,61301.0,61300.0,0.163129]
[1724269468840,0.1993,61301.0,61300.0,0.489393]
[1724269469487,0.1993,61301.0,61300.0,0.163129]
[1724269469929,0.1993,61301.0,61293.0,0.326297]
[1724269469930,0.3879,61300.0,61295.0,0.163144]
[1724269470123,0.3879,61299.0,61295.0,0.163143]
[1724269470323,0.3879,61298.0,61295.0,0.163144]
[1724269470525,0.3879,61298.0,61281.0,0.2863086]
[1724269470757,0.3879,61298.0,61297.0,0.48942]
[1724269470963,0.3879,61298.0,61288.0,0.326323]
[1724269471126,0.3879,61298.0,61295.0,0.163143]
[1724269471774,0.3879,61298.0,61293.0,0.326297]
[1724269471775,0.3879,61298.0,61294.0,0.326293]
[1724269471981,0.1993,61301.0,61281.0,0.0009086]
[1724269471982,0.1993,61301.0,61300.0,0.489396]
[1724269472186,0.1993,61301.0,61300.0,0.81566]
[1724269472814,0.3818,61304.0,61303.0,0.81562]
[1724269473597,0.01704405,61312.0,61309.0,0.489324]
[1724269473598,0.3996,61310.0,61309.0,0.489324]
[1724269473938,0.562706,61310.0,61305.0,0.163116]
[1724269474139,0.3996,61308.0,61296.0,0.16314]
[1724269474338,0.3996,61301.0,61298.0,0.163136]
[1724269474473,0.3996,61301.0,61300.0,0.163132]
[1724269474949,0.358633,61300.0,61295.0,0.163143]
[1724269475159,0.3996,61299.0,61293.0,0.3263]
[1724269475387,0.3996,61299.0,61285.0,0.326342]
[1724269475637,0.3996,61299.0,61286.0,0.26400298]
[1724269475847,0.3996,61299.0,61295.0,0.163144]
[1724269476089,0.3996,61299.0,61296.0,0.163142]
[1724269476574,0.3996,61299.0,61297.0,0.163139]
[1724269477070,0.3996,61299.0,61296.0,0.163142]
[1724269477298,0.3996,61299.0,61297.0,0.163139]
[1724269477784,0.3996,61299.0,61297.0,0.163137]
[1724269478028,0.3996,61299.0,61294.0,0.326293]
[1724269478029,0.3996,61299.0,61298.0,0.489411]
[1724269478261,0.4006,61299.0,61298.0,0.489411]
[1724269478970,0.3996,61299.0,61298.0,0.489411]
[1724269479208,0.4006,61299.0,61298.0,0.489411]
[1724269479687,0.4006,61299.0,61296.0,0.163141]
[1724269480279,0.4006,61299.0,61295.0,0.163142]
[1724269480527,0.4006,61299.0,61296.0,0.163142]
[1724269480750,0.4006,61299.0,61295.0,0.163144]
[1724269480921,0.3996,61299.0,61295.0,0.163144]
[1724269481133,0.563734,61299.0,61295.0,0.163144]
[1724269481756,0.57145802,61299.0,61295.0,0.163144]
[1724269482000,0.40732402,61299.0,61296.0,0.163141]
[1724269482204,0.40832402,61299.0,61296.0,0.163141]
[1724269482407,0.4006,61299.0,61297.0,0.163139]
[1724269482613,0.4006,61299.0,61294.0,0.326294]
[1724269482823,0.4006,61299.0,61296.0,0.16314]
[1724269482976,0.4006,61299.0,61297.0,0.163138]
[1724269483651,0.4036,61299.0,61297.0,0.163138]
[1724269483903,0.4036,61299.0,61298.0,0.163137]
[1724269484087,0.4026,61299.0,61298.0,0.163137]
[1724269484294,0.3996,61299.0,61298.0,0.163137]
[1724269484556,0.4036,61299.0,61298.0,0.163137]
[1724269484732,0.3996,61299.0,61296.0,0.326285]
[1724269484948,0.3996,61299.0,61298.0,0.163137]
[1724269485174,0.4006,61299.0,61298.0,0.163137]
[1724269485586,0.4036,61299.0,61297.0,0.16314]
[1724269486813,0.4056,61299.0,61297.0,0.16314]
[1724269487027,0.4016,61299.0,61297.0,0.16314]
[1724269487246,0.4006,61299.0,61298.0,0.163137]
[1724269487466,0.4026,61299.0,61298.0,0.163137]
[1724269487875,0.4026,61299.0,61296.0,0.32628]
[1724269488079,0.4016,61299.0,61295.0,0.326288]
[1724269488294,0.3996,61299.0,61294.0,0.326295]
[1724269488515,0.4026,61299.0,61296.0,0.163142]
[1724269488752,0.3996,61299.0,61297.0,0.163139]
[1724269488970,0.16314,61297.0,61291.0,0.32631]
[1724269489177,0.53960298,61296.0,61287.0,0.801529]
[1724269489379,0.163153,61292.0,61287.0,0.163164]
[1724269489635,0.538749,61294.0,61289.0,0.16316]
[1724269489822,0.163151,61293.0,61289.0,0.16316]
[1724269491139,0.001,61292.0,61287.0,0.33433]
[1724269491361,0.001,61292.0,61290.0,0.163157]
[1724269491614,0.538748,61294.0,61290.0,0.163157]
[1724269492435,0.3756,61294.0,61287.0,0.32633]
[1724269492695,0.3756,61294.0,61289.0,0.16316]
[1724269492696,0.163151,61293.0,61289.0,0.16316]
[1724269492950,0.163151,61293.0,61289.0,0.16516]
[1724269493211,0.163151,61293.0,61290.0,0.163158]
[1724269493730,0.163151,61293.0,61287.0,0.32633]
[1724269493731,0.163155,61292.0,61288.0,0.163163]
[1724269494002,0.4078,61292.0,61286.0,0.326338]
[1724269494282,0.4078,61292.0,61290.0,0.001]
[1724269494543,0.4078,61292.0,61289.0,0.16316]
[1724269495064,0.570953,61292.0,61288.0,0.163162]
[1724269495489,0.4078,61292.0,61289.0,0.16316]
[1724269495913,0.4078,61292.0,61290.0,0.163157]
[1724269498103,0.4078,61292.0,61290.0,0.165157]
[1724269498314,0.570954,61292.0,61290.0,0.002]
[1724269498533,0.4078,61292.0,61290.0,0.002]
[1724269498962,0.4078,61292.0,61290.0,0.165158]
[1724269499812,0.4078,61292.0,61291.0,0.163156]
[1724269500685,0.4078,61292.0,61291.0,0.489468]
[1724269501097,0.4078,61292.0,61291.0,0.491468]
[1724269501353,0.4078,61292.0,61291.0,0.165156]
[1724269501563,0.4078,61292.0,61291.0,0.491468]
[1724269501773,0.4078,61292.0,61291.0,0.81778]
[1724269502426,0.192,61295.0,61294.0,0.81574]
[1724269502664,0.000826,61301.0,61300.0,0.489396]
[1724269502882,0.000826,61301.0,61300.0,1.141924]
[1724269503315,0.000826,61301.0,61300.0,1.530424]
[1724269504398,0.000826,61301.0,61300.0,2.02669098]
[1724269504613,1e-06,61301.0,61300.0,2.51594725]
[1724269504866,0.000826,61304.0,61303.0,1.146868]
[1724269505090,0.000826,61304.0,61303.0,2.89959828]
[1724269505312,0.000826,61304.0,61303.0,2.78152855]
[1724269505519,0.000826,61304.0,61303.0,2.75552855]
[1724269505736,0.000826,61304.0,61303.0,2.75652855]
[1724269505963,0.000826,61304.0,61303.0,3.15881792]
[1724269506173,0.000826,61304.0,61303.0,3.11437655]
[1724269506383,0.000826,61304.0,61303.0,3.44062455]
[1724269506597,0.000826,61304.0,61303.0,3.55934422]
[1724269506811,0.000826,61304.0,61303.0,3.43933956]
[1724269507024,0.000826,61304.0,61303.0,4.69913956]
[1724269507236,0.000825,61317.0,61316.0,2.168305]
[1724269507449,0.000825,61317.0,61316.0,2.81043998]
[1724269507662,0.000825,61317.0,61316.0,2.76248698]
[1724269507838,0.000825,61317.0,61316.0,2.81044178]
[1724269508089,0.000825,61317.0,61316.0,2.76248698]
[1724269508298,0.000825,61317.0,61316.0,2.76708698]
[1724269508510,0.000825,61317.0,61316.0,2.47768698]
[1724269508720,0.000825,61317.0,61316.0,0.815447]
[1724269509547,0.01786905,61317.0,61316.0,0.815447]
[1724269509753,0.01786905,61317.0,61316.0,0.829447]
[1724269509959,0.01886905,61317.0,61316.0,0.840447]
[1724269510380,0.01786905,61317.0,61316.0,0.829447]
[1724269510588,0.01786905,61317.0,61316.0,0.97944998]
[1724269510796,0.01886905,61317.0,61316.0,1.31362898]
[1724269510998,0.01786905,61317.0,61316.0,1.31462898]
[1724269511408,0.01886905,61317.0,61316.0,1.32562898]
[1724269511621,0.01886905,61317.0,61316.0,1.31462898]
[1724269511828,0.01886905,61317.0,61316.0,1.79362898]
[1724269512045,0.01986905,61317.0,61316.0,1.80462898]
[1724269512481,0.01986905,61317.0,61316.0,1.79562898]
[1724269512908,0.02086905,61317.0,61316.0,1.80962898]
[1724269513082,0.01886905,61317.0,61316.0,1.79862898]
[1724269513315,0.01786905,61317.0,61316.0,2.39920798]
[1724269513522,0.01886905,61317.0,61316.0,2.41480798]
[1724269513724,0.001825,61317.0,61316.0,2.41480798]
[1724269513927,0.001825,61317.0,61316.0,2.41680798]
[1724269514136,0.001825,61317.0,61316.0,2.41480798]
[1724269514339,0.001825,61317.0,61316.0,2.40580798]
[1724269514542,0.002825,61317.0,61316.0,2.41280798]
[1724269514954,0.002825,61317.0,61316.0,2.12740798]
[1724269515380,0.002825,61317.0,61316.0,0.500268]
[1724269515606,0.002825,61317.0,61316.0,0.514268]
[1724269515818,0.002825,61317.0,61316.0,0.840447]
[1724269516050,0.002825,61317.0,61316.0,0.826447]
[1724269516272,0.000825,61317.0,61316.0,0.815447]
[1724269516491,0.001825,61317.0,61316.0,0.500268]
[1724269516703,0.000825,61317.0,61316.0,0.163089]
[1724269516917,0.000825,61317.0,61316.0,0.177089]
[1724269517153,0.001825,61317.0,61316.0,0.188089]
[1724269517356,0.001825,61317.0,61316.0,0.174089]
[1724269517798,0.000825,61317.0,61316.0,0.163089]
[1724269518189,0.001825,61317.0,61316.0,0.171089]
[1724269518609,0.001825,61317.0,61316.0,0.008]
[1724269519046,0.001825,61317.0,61316.0,0.022]
[1724269519672,0.001825,61317.0,61316.0,0.008]
[1724269519876,0.407625,61317.0,61314.0,0.163092]
[1724269520092,0.407625,61317.0,61307.0,0.326223]
[1724269520093,0.407625,61317.0,61316.0,0.009]
[1724269520325,0.571713,61317.0,61316.0,0.017]
[1724269520541,0.408625,61317.0,61316.0,0.017]
[1724269520743,1.224057,61317.0,61316.0,0.017]
[1724269520970,0.897884,61317.0,61316.0,0.008]
[1724269521401,0.408625,61317.0,61316.0,0.008]
[1724269521615,0.001825,61317.0,61316.0,0.823447]
[1724269521819,0.001825,61317.0,61316.0,1.149626]
[1724269522227,0.001825,61317.0,61316.0,0.823447]
[1724269523101,0.001825,61317.0,61316.0,0.832447]
[1724269523509,0.001825,61317.0,61316.0,0.99644998]
[1724269523719,0.001825,61317.0,61316.0,1.42562898]
[1724269523925,0.001825,61317.0,61316.0,1.83212898]
[1724269524134,0.001825,61317.0,61316.0,2.15830798]
[1724269524755,0.000825,61317.0,61316.0,2.15030798]
[1724269524956,0.001825,61317.0,61316.0,2.15430798]
[1724269525588,0.001825,61317.0,61316.0,1.81812898]
[1724269525797,0.001825,61317.0,61316.0,1.82712898]
[1724269526026,0.001825,61317.0,61316.0,1.258626]
[1724269526411,0.001825,61317.0,61316.0,1.249626]
[1724269526616,0.001825,61317.0,61316.0,1.263626]
[1724269526846,0.000825,61317.0,61316.0,1.255626]
[1724269527047,0.001825,61317.0,61316.0,1.41962898]
[1724269527249,0.001825,61317.0,61316.0,1.80262898]
[1724269527454,0.000825,61317.0,61316.0,1.79662898]
[1724269527657,0.001825,61317.0,61316.0,1.80362898]
[1724269528080,0.001825,61317.0,61316.0,1.79662898]
[1724269528282,0.002825,61317.0,61316.0,1.80362898]
[1724269528491,0.001825,61317.0,61316.0,1.80162898]
[1724269528713,0.001825,61317.0,61316.0,3.38420798]
[1724269528925,0.001825,61317.0,61316.0,3.39320798]
[1724269529148,0.001825,61317.0,61316.0,3.38860798]
[1724269529558,0.001825,61317.0,61316.0,3.37460798]
[1724269529762,0.001825,61317.0,61316.0,3.38860798]
[1724269530179,0.002825,61317.0,61316.0,3.40260798]
[1724269530457,0.000825,61317.0,61316.0,3.37560798]
[1724269530651,0.000825,61317.0,61316.0,3.38960798]
[1724269530838,0.000825,61317.0,61316.0,3.40360798]
[1724269531058,0.000825,61317.0,61316.0,3.38860798]
[1724269531266,0.000825,61317.0,61316.0,3.00560798]
[1724269531470,0.000825,61317.0,61316.0,3.01960798]
[1724269531677,0.000825,61317.0,61316.0,3.00560798]
[1724269531888,0.000825,61317.0,61316.0,2.99160798]
[1724269532094,0.000825,61317.0,61316.0,3.00560798]
[1724269532509,0.000825,61317.0,61316.0,3.01960798]
[1724269533173,0.000825,61317.0,61316.0,3.00560798]
[1724269533352,0.000825,61317.0,61316.0,2.99160798]
[1724269533714,0.001825,61317.0,61316.0,3.02060798]
[1724269534316,0.001825,61317.0,61316.0,3.02260798]
[1724269534510,0.000825,61317.0,61316.0,3.00860798]
[1724269534721,0.000825,61317.0,61316.0,3.01060798]
[1724269534927,0.001825,61317.0,61316.0,3.02460798]
[1724269535131,0.001825,61317.0,61316.0,2.99660798]
[1724269535947,0.001825,61317.0,61316.0,3.01060798]
[1724269536148,0.001825,61317.0,61316.0,3.42670798]
[1724269536363,0.001825,61317.0,61316.0,3.41270798]
[1724269536570,0.002825,61317.0,61316.0,3.42670798]
[1724269536771,1e-08,61317.0,61316.0,3.44070798]
[1724269536972,0.000826,61319.0,61318.0,1.502756]
[1724269537177,0.000826,61319.0,61318.0,1.76675898]
[1724269537586,0.000826,61319.0,61318.0,2.09292698]
[1724269537791,0.000826,61319.0,61318.0,2.09752698]
[1724269537991,0.000826,61319.0,61318.0,3.35732698]
[1724269538202,4e-05,61344.0,61327.0,0.19806]
[1724269538419,4e-05,61344.0,61342.0,1.36680298]
[1724269538623,4e-05,61344.0,61342.0,1.81584298]
[1724269538833,0.00826,61363.0,61342.0,1.81584298]
[1724269538834,0.00826,61363.0,61355.0,1.170898]
[1724269539041,0.19166,61363.0,61355.0,1.76187198]
[1724269539281,1e-06,61363.0,61362.0,0.936001]
[1724269539462,1e-06,61363.0,61362.0,2.20857198]
[1724269539665,1e-06,61363.0,61362.0,2.22486546]
[1724269539889,1e-06,61363.0,61362.0,1.43477198]
[1724269540091,1e-06,61363.0,61362.0,1.40477198]
[1724269540408,1e-06,61363.0,61362.0,0.97883798]
[1724269540816,1e-06,61363.0,61362.0,1.30477198]
[1724269541215,1e-06,61363.0,61362.0,0.828835]
[1724269541216,0.385001,61363.0,61362.0,0.828835]
[1724269541420,0.385001,61363.0,61362.0,0.825835]
[1724269541869,0.385001,61363.0,61362.0,0.814835]
[1724269542081,0.576401,61363.0,61362.0,0.814835]
[1724269542290,0.576401,61363.0,61353.0,0.325977]
[1724269542493,0.576401,61363.0,61354.0,0.16400298]
[1724269542706,0.576401,61363.0,61362.0,0.022]
[1724269542920,0.325952,61359.0,61337.0,0.326066]
[1724269543140,0.6018,61348.0,61342.0,0.163018]
[1724269543353,0.16400298,61358.0,61336.0,0.326068]
[1724269543354,0.4166,61343.0,61336.0,0.326068]
[1724269543553,0.41635329,61341.0,61325.0,0.326129]
[1724269543771,0.163035,61337.0,61320.0,0.49229154]
[1724269543981,0.1852,61340.0,61339.0,0.163028]
[1724269544196,0.1852,61340.0,61321.0,0.16400298]
[1724269544402,0.1852,61340.0,61337.0,0.163031]
[1724269544775,0.1852,61340.0,61338.0,0.163029]
[1724269544976,0.1852,61340.0,61327.0,0.326119]
[1724269545178,0.1862,61340.0,61337.0,0.163032]
[1724269545357,0.1862,61340.0,61332.0,0.163045]
[1724269545562,0.67836098,61339.0,61325.0,0.326129]
[1724269545720,0.67836098,61339.0,61314.0,0.49229154]
[1724269545721,0.1883,61337.0,61314.0,0.49229154]
[1724269545952,0.326116,61328.0,61320.0,0.163076]
[1724269546153,0.163074,61322.0,61310.0,0.32621]
[1724269546432,0.163074,61322.0,61316.0,0.163088]
[1724269546433,0.1883,61321.0,61316.0,0.163088]
[1724269546548,0.1883,61321.0,61315.0,0.326184]
[1724269546549,0.4006,61320.0,61315.0,0.326184]
[1724269546748,0.4006,61320.0,61319.0,0.163081]
[1724269547985,0.4006,61320.0,61319.0,0.815407]
[1724269548786,0.40044221,61320.0,61319.0,0.820407]
[1724269549190,0.40044221,61320.0,61319.0,0.168081]
[1724269549400,0.40144221,61320.0,61319.0,0.168081]
[1724269549824,0.40044221,61320.0,61319.0,0.163081]
[1724269550027,0.40044221,61320.0,61319.0,0.489244]
[1724269550232,0.40244221,61320.0,61319.0,0.495244]
[1724269550588,0.40244221,61320.0,61319.0,0.489244]
[1724269550946,0.40344221,61320.0,61319.0,0.495244]
[1724269551290,0.40344221,61320.0,61319.0,0.821407]
[1724269552575,0.40344221,61320.0,61319.0,0.006]
[1724269552691,0.40344221,61320.0,61319.0,0.169081]
[1724269553347,0.40344221,61320.0,61319.0,0.006]
[1724269553567,0.40344221,61320.0,61319.0,0.169081]
[1724269555401,0.40344221,61320.0,61319.0,0.006]
[1724269555840,0.40344221,61320.0,61319.0,0.169081]
[1724269556010,0.40344221,61320.0,61319.0,0.495244]
[1724269556453,0.40344221,61320.0,61319.0,0.169081]
[1724269557568,0.40344221,61320.0,61319.0,0.821407]
[1724269557774,0.42901494,61320.0,61319.0,0.821407]
[1724269558443,0.42901494,61320.0,61319.0,0.495244]
[1724269558655,0.42901494,61320.0,61319.0,0.006]
[1724269558885,0.42901494,61320.0,61319.0,0.169081]
[1724269559737,0.42901494,61320.0,61319.0,0.495244]
[1724269560578,0.42901494,61320.0,61319.0,0.821407]
[1724269560831,0.42901494,61320.0,61319.0,0.495244]
[1724269561043,0.42901494,61320.0,61319.0,0.169081]
[1724269561922,0.42901494,61320.0,61319.0,0.821407]
[1724269562131,0.02857273,61320.0,61319.0,0.821407]
[1724269562563,0.02857273,61320.0,61319.0,1.14757]
[1724269564353,0.02857273,61320.0,61319.0,0.821407]
[1724269564561,0.02857273,61320.0,61319.0,0.169081]
[1724269564816,0.02857273,61320.0,61319.0,0.495244]
[1724269565438,0.41047273,61320.0,61319.0,0.495244]
[1724269565643,0.41047273,61320.0,61319.0,0.169081]
[1724269566303,0.41047273,61320.0,61319.0,0.821407]
[1724269566955,0.02857273,61320.0,61319.0,1.14757]
[1724269570566,0.02857273,61320.0,61319.0,1.1484775]
[1724269570770,0.02939773,61320.0,61319.0,1.31248048]
[1724269573572,0.02939773,61320.0,61319.0,1.63864348]
[1724269574131,0.02939773,61320.0,61319.0,1.73864348]
[1724269574926,0.02939773,61320.0,61319.0,1.41248048]
[1724269575539,0.02939773,61320.0,61319.0,0.0069075]
[1724269575540,0.6597975,61320.0,61319.0,0.0069075]
[1724269575912,0.61639773,61320.0,61319.0,0.0069075]
[1724269576975,0.61639773,61320.0,61319.0,0.3330705]
[1724269577194,0.21179773,61320.0,61319.0,0.8223145]
[1724269577395,0.02939773,61320.0,61319.0,1.31248048]
[1724269577614,0.02939773,61320.0,61319.0,3.60940648]
[1724269577816,0.578825,61341.0,61340.0,0.163025]
[1724269578042,0.578825,61341.0,61340.0,0.815127]
[1724269578267,0.578825,61341.0,61340.0,0.489076]
[1724269579157,0.582825,61341.0,61340.0,0.489076]
[1724269580047,0.591825,61341.0,61340.0,0.490076]
[1724269580258,1.080894,61341.0,61340.0,0.001]
[1724269580477,1.40694,61341.0,61340.0,0.001]
[1724269580691,1.40694,61341.0,61324.0,1.2598]
[1724269580692,0.1886,61330.0,61318.0,0.0009075]
[1724269580885,0.1886,61330.0,61323.0,0.49229154]
[1724269580886,0.326121,61327.0,61323.0,0.49229154]
[1724269581103,0.163066,61325.0,61321.0,0.163075]
[1724269581309,0.163066,61325.0,61320.0,0.163077]
[1724269581512,0.163068,61324.0,61320.0,0.163077]
[1724269581973,0.02557152,61324.0,61320.0,0.163077]
[1724269582178,0.02557152,61324.0,61323.0,0.001]
[1724269582394,0.60047152,61324.0,61320.0,0.163077]
[1724269582599,0.76353952,61324.0,61320.0,0.163077]
[1724269582805,0.76353952,61324.0,61320.0,0.164077]
[1724269583226,0.76353952,61324.0,61320.0,0.001]
[1724269583432,0.76353952,61324.0,61323.0,0.003]
[1724269583736,1.41581152,61324.0,61323.0,0.003]
[1724269583823,1.41581152,61324.0,61319.0,0.0009075]
[1724269583824,0.163078,61320.0,61319.0,0.0009075]
[1724269584678,0.489235,61320.0,61319.0,0.0009075]
[1724269584895,1.053035,61320.0,61319.0,0.0009075]
[1724269585320,1.053035,61320.0,61319.0,0.0069075]
[1724269585975,0.5638,61320.0,61319.0,0.0069075]
[1724269586596,0.727878,61320.0,61319.0,0.0149075]
[1724269587258,0.5648,61320.0,61319.0,0.0149075]
[1724269587693,0.5648,61320.0,61319.0,0.1779885]
[1724269588323,0.5648,61320.0,61319.0,0.0149075]
[1724269588769,0.5648,61320.0,61319.0,0.1779885]
[1724269590281,0.001,61320.0,61319.0,0.5041515]
[1724269590493,0.001,61320.0,61319.0,1.1564775]
[1724269590704,0.001,61320.0,61319.0,2.02774348]
[1724269590921,0.001,61320.0,61319.0,2.50671574]
[1724269591136,0.001,61320.0,61319.0,2.84271375]
[1724269591817,0.001,61320.0,61319.0,2.98647918]
[1724269592019,0.001,61320.0,61319.0,2.98047918]
[1724269592235,0.001,61320.0,61319.0,2.88305833]
[1724269592441,0.02556626,61332.0,61331.0,1.521446]
[1724269592656,0.02556626,61332.0,61331.0,2.0596587]
[1724269593264,0.02556626,61332.0,61331.0,1.63144798]
[1724269593484,0.02556626,61332.0,61331.0,1.6795587]
[1724269593703,0.02556626,61332.0,61331.0,2.11914037]
[1724269593879,0.01786905,61341.0,61340.0,1.500778]
[1724269594081,0.000825,61341.0,61340.0,2.86678321]
[1724269594308,0.000825,61341.0,61340.0,3.36132321]
[1724269594949,0.000825,61341.0,61340.0,3.19083421]
[1724269595381,0.000825,61341.0,61340.0,2.84178321]
[1724269595596,0.000825,61341.0,61340.0,2.91374223]
[1724269595801,0.000825,61341.0,61340.0,2.52143198]
[1724269596003,0.000825,61341.0,61340.0,2.54318742]
[1724269596207,0.000825,61341.0,61340.0,2.52918742]
[1724269596409,0.000825,61341.0,61340.0,2.57354925]
[1724269596616,0.000825,61341.0,61340.0,2.51558742]
[1724269596841,0.000825,61341.0,61340.0,2.90721217]
[1724269597064,0.000825,61341.0,61340.0,2.90659492]
[1724269597277,0.000825,61341.0,61340.0,4.79619492]
[1724269597502,0.000825,61341.0,61340.0,5.12224592]
[1724269597712,0.000825,61341.0,61340.0,5.21805237]
[1724269597960,0.000825,61341.0,61340.0,2.98165679]
[1724269598157,0.000825,61341.0,61340.0,2.63805813]
[1724269598360,0.000825,61341.0,61340.0,2.54318742]
[1724269598773,0.000825,61341.0,61340.0,4.15603842]
[1724269598978,0.000825,61341.0,61340.0,3.46938742]
[1724269599241,0.000825,61341.0,61340.0,3.43863198]
[1724269599452,0.000825,61341.0,61340.0,3.41003198]
[1724269599712,0.000825,61341.0,61340.0,2.17198301]
[1724269599912,0.000825,61341.0,61340.0,2.15798301]
[1724269600142,0.000825,61341.0,61340.0,2.17198301]
[1724269600348,0.000825,61341.0,61340.0,1.76698301]
[1724269601152,0.000825,61341.0,61340.0,1.75398301]
[1724269601387,0.000825,61341.0,61340.0,1.75598301]
[1724269601566,0.000825,61341.0,61340.0,1.76798301]
[1724269602214,0.000825,61341.0,61340.0,1.73998301]
[1724269602621,0.000825,61341.0,61340.0,1.75398301]
[1724269603078,0.000825,61341.0,61340.0,3.01378301]
[1724269603299,0.000825,61341.0,61340.0,3.75863401]
[1724269603511,0.000825,61341.0,61340.0,3.78163401]
[1724269603714,0.000825,61341.0,61340.0,3.78363401]
[1724269604440,0.000825,61341.0,61340.0,3.76963401]
[1724269604648,0.000825,61341.0,61340.0,3.77963401]
[1724269604869,0.000825,61341.0,61340.0,3.41658301]
[1724269605324,0.000825,61341.0,61340.0,3.43258301]
[1724269605771,0.000825,61341.0,61340.0,3.43058301]
[1724269605974,0.000825,61341.0,61340.0,3.41658301]
[1724269606390,0.000825,61341.0,61340.0,3.43058301]
[1724269607041,0.000825,61341.0,61340.0,3.43258301]
[1724269607449,0.000825,61341.0,61340.0,3.41658301]
[1724269607862,0.000825,61341.0,61340.0,3.43058301]
[1724269608068,0.000825,61341.0,61340.0,3.41658301]
[1724269608494,0.000825,61341.0,61340.0,3.43058301]
[1724269608714,0.000825,61341.0,61340.0,3.74463401]
[1724269608914,1e-08,61341.0,61340.0,3.82997859]
[1724269609222,0.1976,61361.0,61360.0,1.466752]
[1724269609424,0.186201,61363.0,61362.0,0.488901]
[1724269609699,1e-06,61363.0,61362.0,1.63070598]
[1724269611085,0.375901,61363.0,61362.0,1.13882719]
[1724269611465,0.40145307,61363.0,61362.0,1.13882719]
[1724269611668,0.40145307,61363.0,61362.0,1.31183017]
[1724269612089,0.40145307,61363.0,61362.0,1.30283017]
[1724269612299,0.40145307,61363.0,61362.0,1.30783017]
[1724269612709,0.40145307,61363.0,61362.0,1.30983017]
[1724269612934,0.02555307,61363.0,61362.0,1.30983017]
[1724269613714,1e-06,61363.0,61362.0,1.30983017]
[1724269614065,1e-06,61363.0,61362.0,1.31283017]
[1724269614514,1e-06,61363.0,61362.0,1.32383017]
[1724269614719,1e-06,61363.0,61362.0,1.31383017]
[1724269614921,1e-06,61363.0,61362.0,1.30283017]
[1724269615135,1e-06,61363.0,61362.0,1.31483017]
[1724269615333,0.02555306,61363.0,61362.0,1.32783017]
[1724269616914,1e-06,61363.0,61362.0,1.31583017]
[1724269617159,1e-06,61363.0,61362.0,1.31683017]
[1724269617384,1e-06,61363.0,61362.0,1.65676417]
[1724269617775,1e-06,61363.0,61362.0,2.01336417]
[1724269618159,1e-06,61363.0,61362.0,2.11336417]
[1724269619162,1e-06,61363.0,61362.0,2.44029817]
[1724269619362,1e-06,61363.0,61362.0,2.44229817]
[1724269619582,1e-06,61363.0,61362.0,3.92709817]
[1724269619806,1e-06,61363.0,61362.0,3.92909817]
[1724269620405,0.00826,61367.0,61362.0,3.92909817]
[1724269620406,1e-06,61366.0,61365.0,2.174549]
[1724269620613,1e-06,61366.0,61365.0,2.50789656]
[1724269620782,1e-06,61366.0,61365.0,5.28581456]
[1724269621230,0.00826,61373.0,61371.0,1.823373]
[1724269621441,1e-06,61373.0,61372.0,0.16594]
[1724269621587,1e-06,61373.0,61372.0,6.58140498]
[1724269621878,0.00825,61386.0,61380.0,0.521758]
[1724269622033,0.00825,61386.0,61380.0,3.47393898]
[1724269622255,0.00825,61386.0,61381.0,1.145415]
[1724269622472,0.00825,61386.0,61381.0,7.16168398]
[1724269622660,0.00825,61386.0,61381.0,7.15768398]
[1724269622847,0.00825,61386.0,61385.0,1.467154]
[1724269623070,0.00825,61386.0,61385.0,1.75415698]
[1724269623272,0.00825,61386.0,61385.0,2.47906898]
[1724269623477,0.00825,61386.0,61385.0,7.5767519]
[1724269623702,0.00825,61386.0,61385.0,7.53106898]
[1724269623911,0.03379046,61402.0,61386.0,2.719845]
[1724269624121,0.00825,61402.0,61386.0,8.1301309]
[1724269624351,0.00825,61402.0,61399.0,1.823421]
[1724269624545,0.00825,61402.0,61399.0,2.66388598]
[1724269624756,0.4086,61401.0,61399.0,2.66388598]
[1724269625361,0.00825,61400.0,61399.0,2.66388598]
[1724269626837,0.03378594,61400.0,61399.0,2.67788598]
[1724269627355,0.03378594,61400.0,61399.0,2.66388598]
[1724269627575,0.03378594,61400.0,61399.0,2.68988598]